bitfinex-derivatives/quotes_ETHF0:USTF0_20250627
["timestamp","ask_amount","ask_price","bid_price","bid_amount"]
[1751046130132,0.82904,2411.6,2411.5,80.192]
[1751046130328,2.015,2411.7,2411.4,3.2078]
[1751046130532,0.82924,2411.1,2411.0,6.767]
[1751046130825,0.82924,2411.1,2410.7,47.75]
[1751046130826,3.2078,2411.2,2410.5,3.2078]
[1751046131028,0.82932,2410.8,2410.6,6.767]
[1751046131325,0.82932,2410.8,2410.7,25.687]
[1751046131533,2.84792,2410.8,2410.7,25.687]
[1751046131829,2.0186,2410.8,2410.7,25.687]
[1751046132027,2.0186,2410.8,2410.7,33.28535]
[1751046132231,3.2078,2411.6,2410.9,0.82925]
[1751046132428,0.7165,2411.4,2411.3,3.2078]
[1751046132624,0.7165,2411.4,2411.3,35.6978]
[1751046132927,5.7065,2411.4,2411.3,35.6978]
[1751046133122,0.82905,2411.6,2411.3,35.6978]
[1751046133329,3.2399078,2412.8,2411.6,7.36894972]
[1751046133522,1.34775987,2412.4,2412.1,3.2078]
[1751046133727,0.82874,2412.5,2412.2,26.29]
[1751046133924,8.71680336,2412.4,2411.8,3.2078]
[1751046134126,0.82885,2412.2,2411.9,26.285]
[1751046134334,0.82878,2412.4,2411.9,27.11391]
[1751046134625,1.34778782,2412.3,2411.9,27.11391]
[1751046134830,4.99,2412.1,2412.0,0.8289]
[1751046135236,4.99,2412.1,2412.0,8.19784972]
[1751046135531,4.03652,2412.6,2412.1,0.82883]
[1751046135735,1.34819923,2412.5,2412.2,26.282]
[1751046136028,4.99,2412.4,2412.2,26.282]
[1751046136532,4.99,2412.4,2412.2,27.11083]
[1751046138437,4.99,2412.4,2412.3,0.8288]
[1751046138834,6.33818442,2412.4,2412.3,0.8288]
[1751046142640,8.76370698,2412.4,2412.3,0.8288]
[1751046144339,6.33818442,2412.4,2412.3,0.8288]
[1751046144635,1.34818442,2412.4,2412.3,0.8288]
[1751046144942,1.34818442,2412.4,2412.3,2.9793]
[1751046146036,1.34818442,2412.4,2412.1,3.2078]
[1751046146233,2.07238442,2412.3,2412.2,34.09183]
[1751046146431,2.07238442,2412.3,2412.2,33.263]
[1751046146631,2.07238442,2412.3,2412.1,3.2078]
[1751046146828,3.56151442,2412.2,2412.1,3.2078]
[1751046147032,2.73268442,2412.2,2411.7,10.2938]
[1751046147237,0.82894,2411.9,2411.7,7.91498]
[1751046147431,0.6856,2412.1,2411.7,7.91498]
[1751046147432,2.0676,2411.8,2411.7,7.91498]
[1751046147633,2.0676,2411.8,2411.7,34.08298]
[1751046148043,14.43654972,2411.8,2411.4,3.2078]
[1751046148339,0.829,2411.7,2411.5,26.161]
[1751046148533,1.3845,2411.6,2411.5,26.161]
[1751046148734,1.3845,2411.6,2411.3,7.086]
[1751046148937,0.82908,2411.5,2411.4,26.164]
[1751046149439,0.82908,2411.5,2411.2,0.82915]
[1751046149440,12.36894972,2411.5,2411.0,10.2938]
[1751046149743,6.16633,2411.4,2411.2,0.82917]
[1751046149948,0.82914,2411.3,2411.1,26.99318]
[1751046150236,0.82923,2411.1,2411.0,26.157]
[1751046150437,0.82926,2411.0,2410.8,7.086]
[1751046150642,2.24946,2411.0,2410.8,33.241]
[1751046150851,1.4202,2411.0,2410.8,34.07031]
[1751046151036,1.4202,2411.0,2410.8,33.241]
[1751046151238,1.4202,2411.0,2410.8,34.07031]
[1751046151540,2.24946,2411.0,2410.8,34.07031]
[1751046151739,1.4202,2411.0,2410.8,33.241]
[1751046152040,1.4202,2411.0,2410.8,34.07029]
[1751046152240,6.4102,2411.0,2410.8,33.241]
[1751046152542,0.82928,2410.9,2410.8,26.14]
[1751046152842,1.3656,2410.9,2410.8,26.96931]
[1751046154446,2.19488,2410.9,2410.8,26.14]
[1751046154743,1.3656,2410.9,2410.8,0.82931]
[1751046155041,1.3656,2410.9,2410.7,26.144]
[1751046155240,0.82931,2410.8,2410.7,26.144]
[1751046155435,1.50311,2410.8,2410.7,26.144]
[1751046155842,1.50311,2410.8,2410.7,26.107]
[1751046157339,1.50311,2410.8,2410.7,26.93635]
[1751046157639,2.97201,2410.8,2410.7,26.93635]
[1751046158337,2.97201,2410.8,2410.7,26.107]
[1751046159241,2.97201,2410.8,2410.7,26.93635]
[1751046159444,2.1427,2410.8,2410.7,26.93635]
[1751046160139,1.50311,2410.8,2410.7,26.93635]
[1751046160540,1.50311,2410.8,2410.7,26.90035]
[1751046161343,1.50311,2410.8,2410.7,0.82935]
[1751046161544,1.50311,2410.8,2410.7,26.90035]
[1751046161845,0.6738,2410.8,2410.7,26.90035]
[1751046162043,1.50311,2410.8,2410.7,26.90035]
[1751046162341,5.6638,2410.8,2410.7,26.90035]
[1751046162845,6.49311,2410.8,2410.7,26.90035]
[1751046163045,6.49311,2410.8,2410.7,26.071]
[1751046163247,6.49311,2410.8,2410.7,26.90035]
[1751046163647,6.49311,2410.8,2410.7,26.071]
[1751046166241,2.0734,2410.7,2410.2,0.8295]
[1751046166445,0.82951,2410.3,2410.1,0.82955]
[1751046166643,3.2078,2410.5,2410.2,0.8295]
[1751046166948,0.82948,2410.3,2410.1,0.82954]
[1751046167151,0.82956,2410.1,2409.9,0.8296]
[1751046167440,0.82956,2410.1,2409.8,10.1758]
[1751046167441,2.1055,2410.4,2409.8,3.2078]
[1751046167646,0.82962,2409.9,2409.8,29.2478]
[1751046167848,0.8296,2410.0,2409.8,30.07746]
[1751046168351,4.99,2409.9,2409.8,30.07746]
[1751046168657,4.99,2409.9,2409.8,37.44640972]
[1751046168840,0.82962,2409.9,2409.8,10.1758]
[1751046169150,4.99,2410.0,2409.5,3.2078]
[1751046169454,0.82972,2409.7,2409.5,29.2718]
[1751046169845,4.99,2410.0,2409.5,34.2718]
[1751046170153,3.2078,2410.5,2409.9,3.2078]
[1751046170345,4.03722,2410.5,2410.2,0.8295]
[1751046170546,4.03722,2410.5,2410.1,7.36894972]
[1751046170547,3.2078,2410.5,2410.3,26.90247]
[1751046170748,4.03721,2410.5,2410.4,6.968]
[1751046170947,0.82941,2410.5,2410.4,6.968]
[1751046171553,0.8294,2410.6,2410.4,6.968]
[1751046171745,1.4245,2410.7,2410.4,6.968]
[1751046171944,3.2078,2411.1,2410.5,3.2078]
[1751046172145,3.36057643,2411.0,2410.6,26.064]
[1751046172346,1.32367643,2410.9,2410.6,26.064]
[1751046172755,2.15295643,2410.9,2410.6,26.064]
[1751046173056,2.16588,2410.9,2410.6,26.89336]
[1751046173366,1.3366,2410.9,2410.6,26.064]
[1751046173652,4.99,2410.8,2410.7,0.82931]
[1751046174056,4.99,2410.8,2410.6,26.89336]
[1751046174949,7.21464,2410.8,2410.6,26.064]
[1751046175151,1.3236855,2410.7,2410.2,3.8772]
[1751046175356,6.3853,2410.8,2410.2,3.8772]
[1751046175357,1.3236855,2410.6,2410.5,0.82941]
[1751046175548,1.3236855,2410.6,2410.3,33.018]
[1751046175549,6.3853,2410.8,2410.6,0.82938]
[1751046175748,1.32291072,2410.7,2410.6,26.86738]
[1751046176554,6.3853,2410.8,2410.7,0.82935]
[1751046176755,10.23971977,2410.8,2410.7,0.82935]
[1751046177057,8.84441977,2410.8,2410.7,0.82935]
[1751046177353,4.99,2410.8,2410.7,0.82935]
[1751046177557,4.99,2410.8,2410.7,26.86135]
[1751046178255,4.99,2410.8,2410.7,28.21735]
[1751046178455,3.8768,2411.4,2411.3,0.82914]
[1751046178655,5.20138467,2411.4,2411.3,0.82914]
[1751046179153,14.04580444,2411.4,2411.3,0.82914]
[1751046179349,14.04580444,2411.4,2411.2,26.014]
[1751046179548,1.32458467,2411.3,2411.2,26.84317]
[1751046179950,12.72121977,2411.4,2411.3,0.82914]
[1751046180149,8.1978,2411.4,2411.3,0.82914]
[1751046181662,6.31568507,2411.4,2411.3,0.82914]
[1751046181956,4.99,2411.4,2411.3,2.26774]
[1751046182257,0.82915,2411.3,2411.1,4.037]
[1751046182458,6.31612997,2411.4,2411.1,6.968]
[1751046182459,0.82917,2411.2,2411.1,6.968]
[1751046182660,2.7765,2411.2,2411.1,6.968]
[1751046182860,2.7765,2411.2,2411.1,7.79721]
[1751046183059,4.99,2411.4,2411.3,0.82914]
[1751046183264,1.32649892,2411.4,2411.3,26.83214]
[1751046183652,1.332,2411.6,2411.3,26.003]
[1751046183848,2.16105,2411.6,2411.4,0.82909]
[1751046184153,4.99,2411.5,2411.4,0.82909]
[1751046186857,4.99,2411.5,2411.4,4.03689]
[1751046188154,1.50896,2411.9,2411.4,4.5543]
[1751046188366,4.0684,2411.6,2411.5,7.79706]
[1751046190160,4.0684,2411.6,2411.5,9.20126]
[1751046190357,3.1006,2411.6,2411.5,61.97226]
[1751046190661,3.9293,2412.3,2412.2,0.82883]
[1751046190858,3.2078,2412.3,2412.2,33.76183]
[1751046191052,3.9247,2412.6,2412.5,0.82873]
[1751046191254,3.9247,2412.6,2412.5,26.80873]
[1751046191464,0.7169,2412.6,2412.5,26.80873]
[1751046191663,0.7169,2412.6,2412.5,25.98]
[1751046191965,1.54561,2412.6,2412.5,25.978]
[1751046192866,2.94361,2412.6,2412.5,25.978]
[1751046193562,3.0547,2412.5,2412.3,3.2078]
[1751046193764,0.82878,2412.4,2412.0,4.6067]
[1751046193960,1.398,2412.4,2412.1,6.917]
[1751046194165,0.82883,2412.2,2412.1,6.917]
[1751046194467,5.82353,2412.2,2412.1,32.872]
[1751046195059,0.82891,2412.0,2411.8,0.82895]
[1751046195266,0.8289,2412.0,2411.9,6.917]
[1751046195459,0.8289,2412.0,2411.9,32.869]
[1751046195661,0.8289,2412.0,2411.9,6.917]
[1751046195869,0.82897,2411.9,2411.8,6.917]
[1751046196056,1.49497,2411.9,2411.8,32.868]
[1751046196261,1.49497,2411.9,2411.8,6.917]
[1751046196563,1.49497,2411.9,2411.8,32.868]
[1751046198361,1.49497,2411.9,2411.8,33.69697]
[1751046198868,1.49497,2411.9,2411.8,32.868]
[1751046200760,0.82897,2411.8,2411.7,3.2078]
[1751046200961,0.82897,2411.8,2411.7,36.0308]
[1751046202869,0.82897,2411.8,2411.7,36.0148]
[1751046203964,0.666,2411.9,2411.7,36.0148]
[1751046204268,4.9947,2411.8,2411.7,36.8438]
[1751046205673,2.17135,2412.2,2411.9,0.82891]
[1751046205967,2.17135,2412.2,2412.0,26.7179]
[1751046206162,2.17135,2412.2,2412.1,32.805]
[1751046206163,7.16605,2412.2,2412.1,32.805]
[1751046206369,7.16605,2412.2,2412.1,33.63386]
[1751046206572,7.16605,2412.2,2412.1,32.805]
[1751046206769,6.3372,2412.2,2412.1,32.803]
[1751046207070,7.16603,2412.2,2412.1,32.803]
[1751046207271,5.82353,2412.2,2412.1,32.803]
[1751046207572,7.24223,2412.2,2412.1,32.793]
[1751046209374,0.82897,2411.8,2411.6,0.82902]
[1751046209576,0.82897,2411.8,2411.7,32.778]
[1751046210072,2.07222,2412.1,2411.7,33.607]
[1751046210272,2.07217,2412.1,2411.7,32.778]
[1751046210462,0.829,2411.7,2411.6,0.82901]
[1751046210673,0.829,2411.7,2411.6,6.917]
[1751046210971,0.829,2411.7,2411.6,32.77]
[1751046211166,2.8898,2411.7,2411.6,32.77]
[1751046211372,2.0608,2411.7,2411.6,33.59904]
[1751046211764,0.829,2411.7,2411.6,32.77]
[1751046212472,4.9947,2411.8,2411.6,32.77]
[1751046212768,0.82907,2411.5,2411.4,10.1248]
[1751046212969,0.82907,2411.5,2411.4,35.9708]
[1751046213273,0.82907,2411.5,2411.4,6.917]
[1751046213475,0.82907,2411.5,2411.4,32.761]
[1751046213675,3.464,2411.5,2411.0,4.71402]
[1751046213876,0.82919,2411.2,2411.1,32.759]
[1751046214470,0.82919,2411.2,2411.1,32.757]
[1751046214668,1.3913,2411.5,2411.1,32.757]
[1751046214977,5.82387,2411.2,2411.1,6.917]
[1751046215279,5.82387,2411.2,2411.1,32.753]
[1751046215667,4.9947,2411.2,2410.8,48.4799]
[1751046215873,1.3913,2411.1,2410.9,32.746]
[1751046216080,0.82926,2411.0,2410.9,32.746]
[1751046216371,2.22054,2411.1,2410.9,32.746]
[1751046216576,1.3913,2411.1,2410.9,32.746]
[1751046216776,0.82924,2411.0,2410.9,32.746]
[1751046217373,0.82928,2410.9,2410.8,47.757]
[1751046217573,0.82928,2410.9,2410.8,54.674]
[1751046217872,0.82928,2410.9,2410.8,80.497]
[1751046218279,0.82928,2410.9,2410.8,54.674]
[1751046218486,2.95368,2410.9,2410.8,80.494]
[1751046218686,2.95368,2410.9,2410.8,80.493]
[1751046218888,2.95368,2410.9,2410.8,80.49]
[1751046219492,2.95368,2410.9,2410.8,80.487]
[1751046219791,2.1244,2410.9,2410.8,80.487]
[1751046220495,2.1244,2410.9,2410.4,3.2078]
[1751046220789,3.2078,2410.8,2410.5,32.724]
[1751046220989,0.82938,2410.6,2410.5,32.724]
[1751046222398,6.3265,2410.7,2410.5,32.724]
[1751046222590,0.82938,2410.6,2410.5,32.724]
[1751046222791,2.24178,2410.6,2410.5,6.918]
[1751046222993,2.24178,2410.6,2410.5,32.716]
[1751046223396,2.24178,2410.6,2410.5,33.54541]
[1751046223587,2.24178,2410.6,2410.5,32.716]
[1751046223789,0.82941,2410.5,2410.4,10.85722]
[1751046223989,4.9947,2410.7,2410.6,0.82938]
[1751046224289,5.82405,2410.7,2410.6,25.791]
[1751046224489,7.23645,2410.7,2410.6,25.791]
[1751046225096,7.23645,2410.7,2410.6,26.62038]
[1751046225296,7.23645,2410.7,2410.6,25.791]
[1751046229101,0.82941,2410.5,2410.4,10.0278]
[1751046229402,0.82952,2410.2,2410.1,4.03733]
[1751046229597,0.82952,2410.2,2410.1,36.63833]
[1751046229899,0.8295,2410.3,2410.2,0.8295]
[1751046230092,0.82952,2410.2,2410.1,36.63833]
[1751046230398,0.8295,2410.3,2410.2,0.82951]
[1751046230601,0.82949,2410.3,2410.2,0.8295]
[1751046231100,0.82952,2410.2,2410.1,35.8088]
[1751046231796,0.82962,2409.9,2409.8,3.2078]
[1751046232006,2.07401,2410.0,2409.5,10.7521]
[1751046232494,3.6737,2409.9,2409.6,25.781]
[1751046232693,0.82969,2409.7,2409.6,25.781]
[1751046234495,5.7307,2409.9,2409.5,10.7521]
[1751046234696,0.82972,2409.6,2409.5,10.0288]
[1751046235397,0.82972,2409.6,2409.5,36.64256]
[1751046235602,0.82971,2409.7,2409.5,10.85856]
[1751046235801,0.82972,2409.6,2409.5,4.03756]
[1751046236001,0.82972,2409.6,2409.5,36.64256]
[1751046236203,0.82971,2409.7,2409.5,4.03756]
[1751046236406,0.82971,2409.7,2409.6,33.43472]
[1751046236599,0.82971,2409.7,2409.6,32.605]
[1751046237099,0.82972,2409.6,2409.5,3.2078]
[1751046237301,0.82972,2409.6,2409.5,35.8128]
[1751046237602,0.82972,2409.6,2409.5,36.64256]
[1751046237797,0.82972,2409.6,2409.5,35.8128]
[1751046238103,0.82972,2409.6,2409.5,36.64456]
[1751046238305,0.82971,2409.7,2409.6,0.82972]
[1751046238502,0.82972,2409.6,2409.5,4.03755]
[1751046238702,3.2078,2410.2,2409.8,0.82965]
[1751046238903,0.82961,2410.0,2409.9,25.785]
[1751046239103,0.82961,2410.0,2409.9,26.61462]
[1751046239400,0.0273,2410.0,2409.9,40.83211666]
[1751046239604,0.85689,2410.0,2409.9,34.89362]
[1751046239906,0.85689,2410.0,2409.9,32.607]
[1751046240401,0.0273,2410.0,2409.9,33.43662]
[1751046240600,0.85689,2410.0,2409.9,32.607]
[1751046240800,0.85689,2410.0,2409.9,33.43662]
[1751046241401,0.0273,2410.0,2409.9,33.43662]
[1751046241908,0.0273,2410.0,2409.9,34.80102]
[1751046244309,3.2078,2410.5,2410.2,0.82949]
[1751046244511,4.03724,2410.5,2410.3,26.61548]
[1751046244699,4.03724,2410.5,2410.4,25.786]
[1751046244905,0.82944,2410.5,2410.4,25.786]
[1751046245106,4.9674,2410.5,2410.0,0.6961]
[1751046245409,0.82954,2410.2,2410.1,32.609]
[1751046245713,0.82951,2410.3,2410.1,33.43855]
[1751046246205,0.82952,2410.2,2410.1,32.609]
[1751046246701,0.8296,2410.0,2409.8,3.2078]
[1751046246903,0.8296,2410.0,2409.9,32.608]
[1751046247709,0.8296,2410.0,2409.9,33.43762]
[1751046248914,1.55916,2410.1,2410.0,0.82959]
[1751046249109,0.82959,2410.0,2409.9,33.4376]
[1751046249413,1.55918,2410.1,2410.0,0.82959]
[1751046249810,0.7296,2410.1,2410.0,0.82959]
[1751046250713,1.55915,2410.1,2410.0,25.784]
[1751046251616,1.55915,2410.1,2410.0,26.61359]
[1751046252515,1.55915,2410.1,2410.0,25.784]
[1751046254420,0.82955,2410.1,2410.0,25.784]
[1751046254621,0.82962,2410.0,2409.9,7.64062]
[1751046254821,0.82958,2410.1,2409.9,33.42362]
[1751046255025,0.82958,2410.1,2409.9,32.594]
[1751046255216,0.82959,2410.0,2409.9,32.594]
[1751046255721,0.82959,2410.0,2409.9,33.42362]
[1751046256214,0.82959,2410.0,2409.9,32.594]
[1751046256419,0.82959,2410.0,2409.9,33.42362]
[1751046256921,0.82959,2410.0,2409.9,0.82962]
[1751046257122,0.82959,2410.0,2409.9,33.42262]
[1751046257416,0.82958,2410.1,2410.0,0.82958]
[1751046257923,7.33914546,2410.3,2409.8,4.03743]
[1751046258218,0.82959,2410.0,2409.9,32.593]
[1751046258720,0.82962,2409.9,2409.8,4.03745]
[1751046258908,0.82962,2409.9,2409.8,36.63045]
[1751046259316,1.3621,2410.2,2409.9,0.82962]
[1751046259520,0.82955,2410.1,2410.0,25.782]
[1751046260622,0.82955,2410.1,2409.5,3.2078]
[1751046260623,10.92946546,2410.1,2409.5,3.2078]
[1751046260819,0.82976,2409.6,2409.5,3.2078]
[1751046261024,2.0745,2409.5,2408.6,0.33246413]
[1751046261325,2.0745,2409.5,2408.0,10.74570741]
[1751046261326,0.83014,2408.5,2408.2,3.2078]
[1751046261926,3.7356,2408.5,2408.3,25.88]
[1751046262315,3.7356,2408.5,2408.4,9.70637029]
[1751046262614,0.7378,2408.9,2408.7,0.83005]
[1751046262826,0.82982,2409.5,2409.1,0.82993]
[1751046263125,0.6661,2409.8,2409.5,0.82978]
[1751046263327,1.31782944,2409.7,2409.6,37.41132546]
[1751046263621,2.42393617,2410.3,2409.6,37.41132546]
[1751046263622,4.03729,2410.4,2409.7,3.2078]
[1751046263818,0.366,2410.2,2410.0,3.85556546]
[1751046264019,0.366,2410.2,2410.1,2.87268]
[1751046264225,15.61569755,2410.2,2409.5,0.82978]
[1751046264425,7.40789755,2409.7,2409.4,3.2078]
[1751046264722,4.03762,2409.5,2409.3,26.073]
[1751046264920,2.22583,2409.4,2409.3,26.073]
[1751046265128,9.63372755,2409.4,2409.1,32.883]
[1751046265626,9.63372755,2409.4,2409.2,6.811]
[1751046265627,0.82987,2409.3,2409.2,6.811]
[1751046265827,2.26937,2409.3,2408.9,42.35458]
[1751046266029,0.7236,2409.2,2409.0,32.881]
[1751046266224,0.7236,2409.2,2409.1,32.878]
[1751046266527,4.9918,2409.3,2409.1,36.0858]
[1751046266730,4.9918,2409.3,2409.1,36.91572]
[1751046266932,4.9918,2409.3,2409.1,36.0858]
[1751046267227,4.9918,2409.3,2409.1,36.91573]
[1751046267429,4.9918,2409.3,2409.1,36.91571]
[1751046267720,4.9918,2409.3,2409.1,3.2078]
[1751046267925,7.40789755,2409.2,2408.5,3.2078]
[1751046268123,0.83007,2408.6,2408.5,3.2078]
[1751046268317,0.83007,2408.6,2408.4,0.02062483]
[1751046268318,0.8301,2408.5,2408.4,0.02062483]
[1751046268628,2.1695,2408.5,2408.4,0.02062483]
[1751046268825,2.8548,2408.5,2408.4,0.02062483]
[1751046269026,0.83027,2408.0,2407.9,26.183]
[1751046269330,4.09999,2408.5,2407.8,18.28572878]
[1751046269331,0.83031,2407.9,2407.8,18.28572878]
[1751046269626,0.8303,2408.0,2407.8,36.1998]
[1751046269828,0.83031,2407.9,2407.8,36.1998]
[1751046270124,7.40789755,2407.9,2407.7,8.5618973]
[1751046270327,0.8303,2408.0,2407.7,0.29596852]
[1751046270526,8.23823755,2407.8,2407.7,0.29596852]
[1751046270727,7.40789755,2407.8,2407.3,19.01163619]
[1751046270927,0.83048,2407.4,2407.3,19.01163619]
[1751046271129,4.5472,2407.7,2407.2,3.2078]
[1751046271130,0.83052,2407.3,2407.2,11.47372878]
[1751046271327,8.80569755,2407.3,2406.8,10.74570741]
[1751046271633,8.23854755,2406.9,2406.8,10.74570741]
[1751046272020,12.40789755,2406.9,2406.4,13.22548604]
[1751046272220,3.2078,2406.7,2406.4,9.35521558]
[1751046272933,3.2078,2406.7,2406.3,3.2078]
[1751046273129,8.45329042,2406.4,2405.4,19.73965756]
[1751046273325,8.45329042,2406.8,2405.9,3.2078]
[1751046273629,8.1996,2406.2,2405.6,44.0078]
[1751046273825,11.66109042,2406.2,2405.6,3.2078]
[1751046274132,16.65289042,2405.9,2405.4,23.65185756]
[1751046274329,4.9918,2405.9,2405.8,0.83103]
[1751046274637,4.9918,2405.8,2405.6,3.2078]
[1751046274834,4.9918,2405.8,2405.7,7.12]
[1751046275026,4.9918,2405.8,2405.5,0.717]
[1751046275221,3.2078,2405.7,2405.3,3.2078]
[1751046275529,4.9918,2405.8,2405.2,4.0078]
[1751046275826,4.9918,2405.8,2405.5,3.2078]
[1751046276029,4.9918,2405.8,2405.6,7.428]
[1751046276333,3.2078,2405.7,2405.5,0.83111]
[1751046276633,3.2078,2405.7,2405.2,0.8]
[1751046276827,3.2078,2405.4,2405.2,8.231]
[1751046277033,3.2078,2405.4,2405.2,0.8]
[1751046277528,4.9918,2405.3,2405.2,0.8]
[1751046277732,7.21731,2405.3,2405.2,0.8]
[1751046278029,4.9918,2405.3,2405.2,5.8]
[1751046278232,2.07652,2407.1,2405.2,40.209]
[1751046278233,3.2078,2406.5,2405.2,40.209]
[1751046278532,0.83096,2406.1,2405.6,4.03889]
[1751046278725,3.2078,2406.2,2405.7,7.431]
[1751046278926,3.2078,2405.9,2405.3,3.9475]
[1751046279131,3.2078,2405.6,2405.2,0.8]
[1751046279436,0.83116,2405.5,2405.2,8.231]
[1751046279733,0.83109,2405.7,2405.2,11.4388]
[1751046279931,1.3943,2405.7,2405.2,11.4388]
[1751046280233,3.2078,2406.2,2405.5,3.2078]
[1751046280433,3.2078,2406.2,2406.1,0.83093]
[1751046280627,3.2078,2406.2,2406.1,8.26393]
[1751046281025,8.1978,2406.2,2406.1,8.26393]
[1751046281532,8.1978,2406.2,2406.1,7.433]
[1751046281736,13.1978,2406.2,2405.6,8.26409]
[1751046282029,8.1978,2406.2,2405.7,0.83105]
[1751046282237,8.1978,2406.2,2405.7,0.83106]
[1751046282428,0.83097,2406.0,2405.7,0.83106]
[1751046282630,8.1978,2406.2,2405.6,7.433]
[1751046282832,3.2078,2405.9,2405.6,7.434]
[1751046283030,0.83107,2405.7,2405.6,7.434]
[1751046283633,1.4116,2405.7,2405.3,7.434]
[1751046283831,1.4116,2405.7,2405.4,0.83117]
[1751046284041,0.83121,2405.3,2405.2,0.8]
[1751046284239,0.83119,2405.4,2405.2,1.63124]
[1751046284536,3.6613,2405.4,2405.3,0.83121]
[1751046284737,4.49248,2405.4,2405.2,1.63122]
[1751046284936,3.6613,2405.4,2405.3,0.83121]
[1751046285928,3.2078,2405.6,2405.5,0.83114]
[1751046286237,4.005,2405.4,2405.2,1.63122]
[1751046286440,4.005,2405.4,2405.2,0.8]
[1751046286639,3.2078,2405.6,2405.2,0.8]
[1751046287140,3.2078,2406.0,2405.4,3.2078]
[1751046287439,3.2078,2406.3,2405.7,3.2078]
[1751046287634,3.2078,2406.3,2405.5,38.0648]
[1751046287635,10.86479042,2406.0,2405.5,0.7143]
[1751046287827,3.2078,2405.7,2405.5,7.435]
[1751046288031,4.03888,2405.7,2405.5,7.435]
[1751046288233,0.8311,2405.6,2405.5,7.435]
[1751046289030,3.2078,2405.7,2405.5,7.435]
[1751046289238,0.8311,2405.6,2405.5,7.435]
[1751046289840,5.8211,2405.6,2405.5,7.435]
[1751046290036,4.99,2405.6,2405.5,10.6428]
[1751046290236,5.8211,2405.6,2405.5,7.435]
[1751046290441,5.82112,2405.6,2405.5,7.436]
[1751046290734,0.83121,2405.3,2405.2,0.8]
[1751046290935,13.44329042,2405.6,2405.2,0.8]
[1751046290936,3.2078,2405.4,2405.2,0.8]
[1751046291140,0.83121,2405.3,2405.2,0.8]
[1751046292533,3.2078,2405.4,2405.2,8.236]
[1751046292745,4.99,2405.6,2405.2,11.4438]
[1751046293038,4.99,2405.5,2405.4,0.83117]
[1751046293243,4.1532,2407.0,2405.9,0.83098]
[1751046293244,4.03871,2406.2,2405.9,0.83098]
[1751046293541,3.2078,2406.2,2406.0,7.436]
[1751046293732,4.03871,2406.2,2405.9,7.436]
[1751046294137,3.2078,2406.2,2405.9,7.436]
[1751046294540,0.83096,2406.0,2405.9,7.436]
[1751046295038,3.2078,2406.2,2406.0,0.83096]
[1751046295338,0.83093,2406.1,2406.0,1.4254]
[1751046295646,1.00093,2406.1,2406.0,1.4254]
[1751046296231,0.83096,2406.0,2405.9,7.436]
[1751046296740,0.83103,2405.8,2405.7,7.436]
[1751046297945,4.99,2405.8,2405.4,0.83115]
[1751046298145,0.8312,2405.3,2405.2,8.236]
[1751046298335,0.8312,2405.3,2405.2,0.8]
[1751046298535,4.039,2405.3,2405.2,8.236]
[1751046299142,9.029,2405.3,2405.2,9.06724]
[1751046299333,8.1978,2405.3,2405.2,8.236]
[1751046299532,4.99,2405.3,2405.2,9.06724]
[1751046299739,3.2078,2405.6,2405.2,16.4438]
[1751046300044,0.8312,2405.4,2405.3,35.9819]
[1751046300243,0.8312,2405.3,2405.2,0.8]
[1751046300447,0.83127,2405.1,2405.0,0.7063]
[1751046300642,1.47221385,2405.2,2404.2,10.6448]
[1751046300837,3.2078,2405.2,2404.3,29.2621]
[1751046301147,3.2078,2405.0,2404.4,0.8315]
[1751046301347,3.2078,2405.0,2404.8,0.83136]
[1751046301538,3.2078,2405.3,2404.8,35.51437]
[1751046301744,2.28419392,2405.2,2404.9,2.0798]
[1751046301942,4.03901,2405.3,2405.0,0.8313]
[1751046302244,1.45268171,2405.2,2405.1,7.437]
[1751046302439,2.28392171,2405.2,2405.1,7.437]
[1751046302640,1.45268171,2405.2,2405.1,8.26827]
[1751046302943,0.83114,2405.5,2405.2,0.83122]
[1751046303145,1.45119935,2405.4,2405.3,2.23649]
[1751046303444,1.45119935,2405.4,2405.3,2.2365]
[1751046303641,3.2078,2405.9,2405.8,0.83103]
[1751046303950,3.2078,2405.9,2405.8,8.26803]
[1751046304152,7.1091,2405.9,2405.8,8.26803]
[1751046304345,3.9013,2405.9,2405.8,8.26803]
[1751046304539,3.9013,2405.9,2405.8,11.47583]
[1751046304739,4.73233,2405.9,2405.7,8.1115]
[1751046304940,0.83103,2405.8,2405.7,0.6745]
[1751046305149,3.2078,2405.8,2405.4,47.88]
[1751046305353,0.83109,2405.7,2405.5,7.437]
[1751046305546,0.83108,2405.7,2405.5,7.437]
[1751046305745,0.83113,2405.5,2405.4,55.559]
[1751046305948,4.03893,2405.5,2405.4,55.559]
[1751046306242,4.03893,2405.5,2405.3,27.266]
[1751046306243,8.2078,2405.5,2404.9,7.679]
[1751046306447,0.8313,2405.1,2404.9,7.679]
[1751046306644,2.886,2405.4,2404.6,3.2078]
[1751046306840,3.2078,2404.9,2404.6,1.4527]
[1751046307048,6.1927,2404.9,2404.3,0.7427]
[1751046307243,0.83151,2404.4,2404.3,7.679]
[1751046307550,0.83162,2404.1,2404.0,7.679]